Workbook

Sheet Sheet1
A1: Ricardo Gaspar | B1: Nº 35377
A2: A | B2: =2+7 -> 9
A3: B | B3: =3+7 -> 10
A4: C | B4: =1+2 -> 3
A5: D | B5: =5+5 -> 10
A8: Exercício 1
A10: R2 (KOhm) | B10: 1
A12: V1 (V) | B12: R1 (KOhm) | C12: ID1 calculado (mA) | D12: ID1 correcto (mA) | E12: ID2 calculado (mA) | F12: ID2 correcto (mA)
A13: 1 | B13: =$B$2 -> 9 | C13: =((A13-1.8)*$B$10-0.6*B13)/($B$10*B13) -> -0.6888888889 | D13: =IF(C13<0,0,C13) -> 0 | E13: =IF(D13=0,(A13-1.8)/(B13+$B$10),(0.6/$B$10)+D13) -> -0.08 | F13: =IF(E13<0,0,E13) -> 0
A14: 2.2 | B14: =$B$4 -> 3 | C14: =((A14-1.8)*$B$10-0.6*B14)/($B$10*B14) -> -0.4666666667 | D14: =IF(C14<0,0,C14) -> 0 | E14: =IF(D14=0,(A14-1.8)/(B14+$B$10),(0.6/$B$10)+D14) -> 0.1 | F14: =IF(E14<0,0,E14) -> 0.1
A15: 2.2 | B15: =$B$3/10 -> 1 | C15: -0.2 | D15: 0 | E15: 0.2 | F15: 0.2
A16: 3.8 | B16: =B4 -> 3 | C16: 0.06666666667 | D16: 0.06666666667 | E16: 0.6666666667 | F16: 0.6666666667
A17: 3.8 | B17: =$B$4/10 -> 0.3 | C17: 6.066666667 | D17: 6.066666667 | E17: 6.666666667 | F17: 6.666666667
A18: 3.8 | B18: =$B$3/4 -> 2.5 | C18: 0.2 | D18: 0.2 | E18: 0.8 | F18: 0.8
A19: 3.8 | B19: =ROUND(B5/3,2) -> 3.33 | C19: =((A19-1.8)*$B$10-0.6*B19)/($B$10*B19) -> 0.0006006006006 | D19: 0.0006006006006 | E19: 0.6006006006 | F19: 0.6006006006
A20: 6 | B20: =$B$2 -> 9 | C20: -0.1333333333 | D20: 0 | E20: 0.42 | F20: 0.42
A21: 6 | B21: =$B$3/5 -> 2 | C21: 1.5 | D21: 1.5 | E21: 2.1 | F21: 2.1
A22: 6 | B22: =$B$4/2 -> 1.5 | C22: 2.2 | D22: 2.2 | E22: 2.8 | F22: 2.8
A23: 6 | B23: =$B$2+$B$5+$B$4 -> 22 | C23: -0.4090909091 | D23: 0 | E23: 0.1826086957 | F23: 0.1826086957
A30: Exercício 2
A32: R2 (KOhm) | B32: 10
A34: V1 (V) | B34: V1 alterado (V) | C34: Vz (V) | D34: Vz funcionamento (V) | E34: R1 (KOhm) | F34: I1 (mA) | G34: I2 (mA) | H34: ID calculado (mA) | I34: ID correcto (mA)
A35: -1 | B35: 1 | C35: =$B$2 -> 9 | D35: 0.6 | E35: =$B$2 -> 9 | F35: =I35+(D35/$B$32) -> 0.04444444444 | G35: =F35 -> 0.04444444444 | H35: =((B35-D35)*$B$32-D35*E35)/(E35*$B$32) -> -0.01555555556 | I35: =H35 -> -0.01555555556
A36: -6 | B36: 6 | C36: =$B$4 -> 3 | D36: 0.6 | E36: =$B$3 -> 10 | F36: =I36+(D36/$B$32) -> 0.54 | G36: =F36 -> 0.54 | H36: =((B36-D36)*$B$32-D36*E36)/(E36*$B$32) -> 0.48 | I36: =H36 -> 0.48
A37: -6 | B37: 6 | C37: =$B$3/10 -> 1 | D37: 0.6 | E37: =$B$4 -> 3 | F37: 1.8 | G37: =F37 -> 1.8 | H37: =((B37-D37)*$B$32-D37*E37)/(E37*$B$32) -> 1.74 | I37: 1.74
A38: -6 | B38: 6 | C38: =B26 -> 0 | D38: 0.6 | E38: =$B$5 -> 10 | F38: 0.54 | G38: =F38 -> 0.54 | H38: 0.48 | I38: 0.48
A39: 10 | B39: 10 | C39: =$B$4/10 -> 0.3 | D39: =C39 -> 0.3 | E39: =$B$2 -> 9 | F39: 1.077777778 | G39: =F39 -> 1.077777778 | H39: 1.047777778 | I39: 1.047777778
A40: 10 | B40: 10 | C40: =$B$3/4 -> 2.5 | D40: =C40 -> 2.5 | E40: =$B$3 -> 10 | F40: 0.75 | G40: =F40 -> 0.75 | H40: 0.5 | I40: 0.5
A41: 6 | B41: 6 | C41: =ROUND(B3/3,2) -> 3.33 | D41: 3.33 | E41: =$B$4 -> 3 | F41: =I41+(D41/$B$32) -> 0.89 | G41: =F41 -> 0.89 | H41: 0.557 | I41: 0.557
A42: 6 | B42: 6 | C42: =$B$2 -> 9 | D42: 9 | E42: =$B$5 -> 10 | F42: =B42/(E42+B32) -> 0.3 | G42: =F42 -> 0.3 | H42: -1.2 | I42: 0 | J42: Está ao corte
A43: 6 | B43: 6 | C43: =$B$3/5 -> 2 | D43: 2 | E43: =$B$2 -> 9 | F43: =I43+(D43/$B$32) -> 0.4444444444 | G43: 0.4444444444 | H43: 0.2444444444 | I43: =H43 -> 0.2444444444
A44: 3 | B44: 3 | C44: =$B$4/2 -> 1.5 | D44: 1.5 | E44: =$B$3 -> 10 | F44: =B44/(E44+B32) -> 0.15 | G44: 0.15 | H44: 0 | I44: 0 | J44: Está ao corte
A45: 3 | B45: 3 | C45: =$B$2+$B$5+$B$4 -> 22 | D45: 22 | E45: =$B$4 -> 3 | F45: =B45/(E45+B32) -> 0.2307692308 | G45: =F45 -> 0.2307692308 | H45: -8.533333333 | I45: 0 | J45: Está ao corte
C48: Nota: Quando a tensão é negativa, eu optei por virar a fonte. Assim o díodo funciona a 0,6V.
